[Event "Marshall CC-ch"]
[Site "New York USA"]
[Date "2019.11.17"]
[Round "8"]
[White "Panjwani, Raja"]
[Black "Korley, Kassa"]
[Result "1-0"]
[ECO "A11"]
[WhiteElo "2450"]
[BlackElo "2447"]
[PlyCount "93"]
[EventDate "2019.11.14"]
[EventType "tourn"]
[EventRounds "3"]
[EventCountry "USA"]
[Source "ChessMix"]
[SourceDate "2019.11.20"]
[TimeControl "40/5400+30:900+30"]

1. Nf3 {[%emt 0:00:00]} d5 {[%emt 0:00:04]} 2. g3 {[%emt 0:00:14]} c6 {
[%emt 0:00:29]} 3. Bg2 {[%emt 0:00:06]} Bf5 {[%emt 0:01:50]} 4. O-O {
[%emt 0:00:12]} e6 {[%emt 0:00:03]} 5. d3 {[%emt 0:00:14]} h6 {[%emt 0:01:59]}
6. c4 {[%emt 0:00:39]} Nf6 {[%emt 0:00:48]} 7. cxd5 {[%emt 0:01:09]} exd5 {
[%emt 0:00:08]} 8. Qb3 {[%emt 0:20:02]} Qb6 {[%emt 0:00:15]} 9. Qxb6 {
[%emt 0:00:48]} axb6 {[%emt 0:00:03]} 10. Nd4 {[%emt 0:03:09]} Bh7 {
[%emt 0:00:30]} 11. Nc3 {[%emt 0:01:18]} Bc5 {[%emt 0:00:32]} 12. Nb3 {
[%emt 0:00:35]} O-O {[%emt 0:08:43]} 13. e4 {[%emt 0:01:36]} Bb4 {
[%emt 0:02:36]} 14. e5 {[%emt 0:04:49]} Nfd7 {[%emt 0:00:07]} 15. d4 {
[%emt 0:00:22]} Na6 {[%emt 0:09:36]} 16. Bh3 {[%emt 0:05:15]} Nab8 {
[%emt 0:00:41]} 17. Bd2 {[%emt 0:00:45]} Be7 {[%emt 0:01:31]} 18. Rfc1 {
[%emt 0:06:26]} Re8 {[%emt 0:07:35]} 19. f4 {[%emt 0:04:29]} Bd3 {
[%emt 0:02:08]} 20. Nd1 {[%emt 0:01:33]} Nf8 {[%emt 0:00:51]} 21. f5 {
[%emt 0:02:35]} Nh7 {[%emt 0:13:09]} 22. Nf2 {[%emt 0:01:48]} Bc4 {
[%emt 0:00:11]} 23. Bf1 {[%emt 0:03:05]} Bxf1 {[%emt 0:00:48]} 24. Kxf1 {
[%emt 0:00:05]} Nd7 {[%emt 0:05:51]} 25. a4 {[%emt 0:01:42]} Ra6 {
[%emt 0:00:57]} 26. a5 {[%emt 0:00:45]} Rea8 {[%emt 0:00:02]} 27. h4 {
[%emt 0:03:44]} Bd8 {[%emt 0:09:35]} 28. axb6 {[%emt 0:01:06]} Bxb6 {
[%emt 0:00:25]} 29. Rxa6 {[%emt 0:02:09]} Rxa6 {[%emt 0:00:01]} 30. Nd3 {
[%emt 0:00:50]} Kf8 {[%emt 0:03:59]} 31. Kg2 {[%emt 0:03:01]} Ke8 {
[%emt 0:00:14]} 32. g4 {[%emt 0:01:40]} Ra4 {[%emt 0:00:01]} 33. Be3 {
[%emt 0:00:36]} Nhf8 {[%emt 0:00:42]} 34. Kf3 {[%emt 0:00:54]} Nb8 {
[%emt 0:01:31]} 35. Nbc5 {[%emt 0:08:01]} Bxc5 {[%emt 0:00:12]} 36. Nxc5 {
[%emt 0:00:06]} Rb4 {[%emt 0:00:03]} 37. Ra1 {[%emt 0:00:34]} Nbd7 {
[%emt 0:00:35]} 38. Ra8+ {[%emt 0:02:59]} Ke7 {[%emt 0:00:00]} 39. Nd3 {
[%emt 0:01:47]} Rb3 {[%emt 0:00:02]} 40. Ke2 {[%emt 0:00:32]} f6 {
[%emt 0:04:05]} 41. e6 {[%emt 0:18:15]} Nb6 {[%emt 0:15:02]} 42. Rb8 {
[%emt 0:00:20]} Nc4 {[%emt 0:00:03]} 43. Bd2 {[%emt 0:02:32]} Nxd2 {
[%emt 0:02:39]} 44. Kxd2 {[%emt 0:00:06]} g6 {[%emt 0:01:12]} 45. Kc2 {
[%emt 0:00:08]} Rb5 {[%emt 0:00:03]} 46. Nf4 {[%emt 0:01:38]} gxf5 {
[%emt 0:01:33]} 47. gxf5 {[%emt 0:00:02]} 1-0

[Event "CAN-ch"]
[Site "Guelph CAN"]
[Date "2015.07.10"]
[Round "1.6"]
[White "Panjwani, Raja"]
[Black "Haessel, Dale"]
[Result "1-0"]
[ECO "A34"]
[WhiteElo "2542"]
[BlackElo "2274"]
[PlyCount "29"]
[EventDate "2015.07.10"]
[EventType "swiss"]
[EventRounds "9"]
[EventCountry "CAN"]
[TimeControl "40/5400+30:1800+30"]

1. g3 Nf6 2. Bg2 c5 3. c4 Nc6 4. Nc3 g6 5. Nf3 d5 6. cxd5 Nxd5 7. O-O Bg7 8.
Nxd5 Qxd5 9. d3 Bd7 10. Ng5 Qf5 11. Qb3 Nd4 12. Qxb7 Nxe2+ 13. Kh1 Rd8 14. Be3
Qxd3 15. Rfd1 1-0

[Event "CAN-ch"]
[Site "Guelph CAN"]
[Date "2015.07.11"]
[Round "2.5"]
[White "Gentes, Kevin"]
[Black "Panjwani, Raja"]
[Result "0-1"]
[ECO "E05"]
[WhiteElo "2353"]
[BlackElo "2542"]
[PlyCount "106"]
[EventDate "2015.07.10"]
[EventType "swiss"]
[EventRounds "9"]
[EventCountry "CAN"]
[TimeControl "40/5400+30:1800+30"]

1. Nf3 Nf6 2. g3 d5 3. Bg2 e6 4. O-O Be7 5. c4 O-O 6. d4 dxc4 7. Qc2 a6 8. Qxc4
b5 9. Qc2 Bb7 10. Bf4 Nc6 11. Rd1 Nb4 12. Qc1 Nbd5 13. Nc3 Rc8 14. Nxd5 Bxd5
15. Be3 Ng4 16. Ne1 Bxg2 17. Nxg2 Qd5 18. h3 Nxe3 19. Qxe3 Rfd8 20. Nf4 Qd6 21.
Rac1 c5 22. dxc5 Qxd1+ 23. Rxd1 Rxd1+ 24. Kg2 Bxc5 25. Qe4 Rd7 26. a4 Bf8 27.
axb5 axb5 28. Qe5 b4 29. Nd3 g6 30. b3 Rc3 31. Qb8 Rdxd3 32. exd3 Rxd3 33. g4
Rc3 34. g5 Rd3 35. h4 Rd5 36. f4 Kg7 37. Qb7 Bd6 38. Qb6 Bc5 39. Qb8 Rd2+ 40.
Kf1 Bf8 41. Kg1 Kg8 42. Qb5 Rb2 43. Qe5 Rb1+ 44. Kg2 Rxb3 45. Kh2 Rc3 46. Kg2
Rd3 47. Qe4 Rd5 48. Qc4 h5 49. Kh3 Ra5 50. Kg2 Ra3 51. Qc2 Rc3 52. Qd2 Rc4 53.
Kf3 b3 0-1

[Event "CAN-ch"]
[Site "Guelph CAN"]
[Date "2015.07.11"]
[Round "3.3"]
[White "Panjwani, Raja"]
[Black "Plotkin, Victor"]
[Result "1-0"]
[ECO "E18"]
[WhiteElo "2542"]
[BlackElo "2400"]
[PlyCount "73"]
[EventDate "2015.07.10"]
[EventType "swiss"]
[EventRounds "9"]
[EventCountry "CAN"]
[TimeControl "40/5400+30:1800+30"]

1. Nf3 Nf6 2. c4 e6 3. d4 b6 4. Nc3 Bb7 5. g3 d5 6. Bg2 Be7 7. Ne5 O-O 8. O-O
Qc8 9. cxd5 Nxd5 10. Nxd5 Bxd5 11. e4 Bb7 12. d5 exd5 13. exd5 Bd6 14. Nc4 Na6
15. a3 Qf5 16. b4 Rad8 17. Re1 Rfe8 18. Rxe8+ Rxe8 19. Bb2 f6 20. Rc1 Bf8 21.
Ne3 Qd7 22. Qc2 Bd6 23. Be4 Qh3 24. Bf5 Qh5 25. Bg4 Qg6 26. Be6+ Kh8 27. Nf5
Be5 28. Bxe5 fxe5 29. Qe2 Qf6 30. Ne3 Rd8 31. Ng4 Qg5 32. f4 exf4 33. Ne5 Rf8
34. Nf7+ Rxf7 35. Bxf7 Qd8 36. Re1 h6 37. Qc2 1-0

[Event "CAN-ch"]
[Site "Guelph CAN"]
[Date "2015.07.12"]
[Round "4.1"]
[White "Sambuev, Bator"]
[Black "Panjwani, Raja"]
[Result "1-0"]
[ECO "E14"]
[WhiteElo "2642"]
[BlackElo "2542"]
[PlyCount "57"]
[EventDate "2015.07.10"]
[EventType "swiss"]
[EventRounds "9"]
[EventCountry "CAN"]
[TimeControl "40/5400+30:1800+30"]

1. d4 Nf6 2. Nf3 e6 3. e3 b6 4. Bd3 Bb7 5. O-O d5 6. b3 Bd6 7. Bb2 O-O 8. c4
Nbd7 9. Nc3 a6 10. a3 Ne4 11. Qc2 f5 12. Ne2 c5 13. Nf4 Qe8 14. cxd5 exd5 15.
Rad1 Rc8 16. Qe2 g5 17. dxc5 bxc5 18. Nxd5 Bxd5 19. Bxe4 Qxe4 20. Rxd5 Qxd5 21.
Rd1 Qc6 22. Nxg5 Nb6 23. Qh5 Rc7 24. Nxh7 Bxh2+ 25. Qxh2 Rxh7 26. Qg3+ Kf7 27.
Rd6 Qe4 28. Rf6+ Ke8 29. Qb8+ 1-0

[Event "CAN-ch"]
[Site "Guelph CAN"]
[Date "2015.07.12"]
[Round "5.4"]
[White "Panjwani, Raja"]
[Black "Krnan, Tomas"]
[Result "0-1"]
[ECO "A49"]
[WhiteElo "2542"]
[BlackElo "2557"]
[PlyCount "80"]
[EventDate "2015.07.10"]
[EventType "swiss"]
[EventRounds "9"]
[EventCountry "CAN"]
[TimeControl "40/5400+30:1800+30"]

1. Nf3 Nf6 2. g3 g6 3. Bg2 Bg7 4. d4 d6 5. O-O O-O 6. a4 Na6 7. a5 c5 8. Nc3
Bd7 9. dxc5 Nxc5 10. Nd4 Qc8 11. e4 Bh3 12. Re1 Bxg2 13. Kxg2 h6 14. Nd5 Re8
15. Nb5 Nxd5 16. exd5 Nd7 17. Ra4 a6 18. Nd4 b5 19. axb6 Nxb6 20. Ra5 Qb7 21.
Nf3 Nc4 22. Ra2 Nxb2 23. Qe2 Qxd5 24. Rxb2 Bxb2 25. Bxb2 Rac8 26. Kg1 Qa2 27.
Bc1 Rxc2 28. Qe3 Qd5 29. Nd4 Rc4 30. Bb2 e5 31. Nf3 Rc2 32. Bc3 Qb3 33. Qxh6
Qxc3 34. Re3 Qc6 35. Kg2 Rc3 36. Rxc3 Qxc3 37. Ng5 Qc6+ 38. f3 Qc2+ 39. Kh3
Qf5+ 40. g4 Qf6 0-1

[Event "CAN-ch"]
[Site "Guelph CAN"]
[Date "2015.07.13"]
[Round "6.5"]
[White "Oussedik, Elias"]
[Black "Panjwani, Raja"]
[Result "1/2-1/2"]
[ECO "A14"]
[WhiteElo "2328"]
[BlackElo "2542"]
[PlyCount "99"]
[EventDate "2015.07.10"]
[EventType "swiss"]
[EventRounds "9"]
[EventCountry "CAN"]
[TimeControl "40/5400+30:1800+30"]

1. Nf3 Nf6 2. c4 e6 3. g3 d5 4. Bg2 Be7 5. O-O O-O 6. b3 c5 7. e3 Nc6 8. Bb2 b6
9. Nc3 dxc4 10. bxc4 Bb7 11. Qe2 a6 12. d3 Qc7 13. Ne1 Na5 14. f4 Bxg2 15. Nxg2
Rad8 16. Rad1 Rd7 17. g4 Rfd8 18. g5 Ne8 19. Rf3 Nd6 20. Rh3 g6 21. a4 f5 22.
gxf6 Bxf6 23. Nh4 Rf7 24. Nf3 Nc6 25. Ng5 Bxg5 26. fxg5 Rdf8 27. Qg4 Qe7 28.
Ne2 Rf5 29. Bf6 Qd7 30. e4 Ne5 31. Qg2 R5xf6 32. gxf6 Rxf6 33. Rf1 Rxf1+ 34.
Qxf1 Qxa4 35. Nf4 Qd7 36. Rg3 b5 37. cxb5 axb5 38. Qa1 Ndf7 39. Qa8+ Qd8 40.
Qa2 c4 41. dxc4 Ng5 42. cxb5 Qd4+ 43. Kf1 Nef3 44. Qa8+ Kf7 45. Ne2 Qd1+ 46.
Kf2 Qe1+ 47. Ke3 Qd2+ 48. Kf2 Qe1+ 49. Ke3 Qd2+ 50. Kf2 1/2-1/2